fUST/lending_fUST_20250626
["ID","MTS","AMOUNT","RATE_DAILY","PERIOD"]
[367640194,1750884653042,-510.39,0.00017808,2]
[367640196,1750884653052,-1882.6,0.00017808,2]
[367640198,1750884653061,-460.0,0.00017808,2]
[367640200,1750884653071,-600.36,0.00017808,2]
[367640202,1750884653080,-460.0,0.00017808,2]
[367640204,1750884653090,-460.0,0.00017808,2]
[367640206,1750884653099,-179.67,0.00017808,2]
[367640208,1750884653109,-2480.79,0.00017808,2]
[367640210,1750884653119,-470.06363258,0.00017808,2]
[367640212,1750884653129,-2746.68,0.00017808,2]
[367640214,1750884653139,-575.29,0.00017808,2]
[367640216,1750884653148,-151.0,0.00017808,2]
[367640218,1750884653157,-460.0,0.00017808,2]
[367640220,1750884653167,-566.72,0.00017808,2]
[367640222,1750884653176,-151.0,0.00017808,2]
[367640224,1750884653187,-460.0,0.00017808,2]
[367640226,1750884653198,-460.0,0.00017808,2]
[367640229,1750884653208,-3341.75,0.00017808,2]
[367640231,1750884653218,-1281.27,0.00017808,2]
[367640233,1750884653229,-4561.11,0.00017808,2]
[367640234,1750884653239,-504.26,0.00017808,2]
[367640236,1750884653249,-460.0,0.00017808,2]
[367640239,1750884653259,-663.68,0.00017808,2]
[367640241,1750884653269,-4176.01,0.00017808,2]
[367640242,1750884653278,-584.94,0.00017808,2]
[367640244,1750884653288,-1324.22,0.00017808,2]
[367640246,1750884653298,-460.0,0.00017808,2]
[367640249,1750884653308,-151.0,0.00017808,2]
[367640250,1750884653318,-480.33,0.00017808,2]
[367640252,1750884653328,-460.0,0.00017808,2]
[367640254,1750884653337,-151.0,0.00017808,2]
[367640257,1750884653347,-460.0,0.00017808,2]
[367640259,1750884653358,-1471.77,0.00017808,2]
[367640260,1750884653367,-1843.44,0.00017808,2]
[367640262,1750884653377,-151.0,0.00017808,2]
[367640265,1750884653386,-981.1,0.00017808,2]
[367640266,1750884653396,-593.48,0.00017808,2]
[367640268,1750884653405,-518.55,0.00017808,2]
[367640270,1750884653414,-1502.8,0.00017808,2]
[367640272,1750884653424,-460.0,0.00017808,2]
[367640274,1750884653433,-566.24,0.00017808,2]
[367640276,1750884653443,-460.0,0.00017808,2]
[367640278,1750884653453,-460.0,0.00017808,2]
[367640280,1750884653462,-931.96,0.00017808,2]
[367640282,1750884653471,-883.08,0.00017808,2]
[367640284,1750884653481,-496.05,0.00017808,2]
[367640286,1750884653490,-460.0,0.00017808,2]
[367640288,1750884653500,-460.0,0.00017808,2]
[367640290,1750884653511,-693.13,0.00017808,2]
[367640292,1750884653520,-460.0,0.00017808,2]
[367640294,1750884653529,-607.05,0.00017808,2]
[367640296,1750884653538,-1760.14,0.00017808,2]
[367640298,1750884653548,-460.0,0.00017808,2]
[367640300,1750884653557,-471.56,0.00017808,2]
[367640302,1750884653567,-1858.47,0.00017808,2]
[367640304,1750884653577,-2428.42,0.00017808,2]
[367640306,1750884653587,-429.88324504,0.00017808,2]
[367640308,1750884653597,-460.0,0.00017808,2]
[367640310,1750884653606,-460.0,0.00017808,2]
[367640312,1750884653616,-670.78,0.00017808,2]
[367640314,1750884653626,-460.0,0.00017808,2]
[367640316,1750884653635,-460.0,0.00017808,2]
[367640318,1750884653644,-1000.0,0.00017809,2]
[367640320,1750884653654,-29983.84612837,0.00017901,2]
[367640322,1750884653663,-2569.99926372,0.00018003,2]
[367640324,1750884653673,-228.18855443,0.00018028,2]
[367640326,1750884653682,-460.0,0.00018082,2]
[367640328,1750884653692,-173.16453225,0.00018082,2]
[367640330,1750884653702,-460.0,0.00018082,2]
[367640332,1750884653712,-460.0,0.00018082,2]
[367640334,1750884653721,-280.82,0.00018082,2]
[367640336,1750884653731,-697.7,0.00018082,2]
[367640338,1750884653740,-460.0,0.00018082,2]
[367640340,1750884653750,-460.0,0.00018082,2]
[367640342,1750884653760,-235.31787888,0.00018082,2]
[367640344,1750884653769,-460.0,0.00018082,2]
[367640346,1750884653778,-642.44,0.00018082,2]
[367640348,1750884653788,-524.54463741,0.00018082,2]
[367640350,1750884653798,-460.0,0.00018082,2]
[367640352,1750884653807,-460.0,0.00018082,2]
[367640354,1750884653817,-214.24,0.00018082,2]
[367640356,1750884653826,-460.0,0.00018082,2]
[367640358,1750884653835,-460.0,0.00018082,2]
[367640360,1750884653844,-151.0,0.00018082,2]
[367640362,1750884653854,-151.0,0.00018082,2]
[367640364,1750884653863,-151.0,0.00018082,2]
[367640366,1750884653872,-151.0,0.00018082,2]
[367640368,1750884653881,-460.0,0.00018082,2]
[367640369,1750884653891,-460.0,0.00018082,2]
[367640371,1750884653900,-460.0,0.00018082,2]
[367640373,1750884653909,-151.0,0.00018082,2]
[367640375,1750884653918,-460.0,0.00018082,2]
[367640377,1750884653927,-460.0,0.00018082,2]
[367640379,1750884653937,-460.0,0.00018082,2]
[367640381,1750884653946,-959.24,0.00018082,2]
[367640383,1750884653956,-460.0,0.00018082,2]
[367640385,1750884653965,-460.0,0.00018082,2]
[367640387,1750884653974,-460.0,0.00018082,2]
[367640389,1750884653983,-460.0,0.00018082,2]
[367640391,1750884653992,-460.0,0.00018082,2]
[367640393,1750884654001,-238.75495475,0.00018082,2]
[367640395,1750884654010,-460.0,0.00018082,2]
[367640397,1750884654020,-598.67,0.00018082,2]
[367640399,1750884654029,-547.24,0.00018082,2]
[367640401,1750884654039,-460.0,0.00018082,2]
[367640403,1750884654049,-460.0,0.00018082,2]
[367640405,1750884654058,-2970.29,0.00018082,2]
[367640407,1750884654068,-1853.62,0.00018082,2]
[367640409,1750884654077,-887.84,0.00018082,2]
[367640411,1750884654086,-460.0,0.00018082,2]
[367640413,1750884654096,-583.38,0.00018082,2]
[367640415,1750884654105,-686.93,0.00018082,2]
[367640417,1750884654115,-460.0,0.00018082,2]
[367640419,1750884654124,-460.0,0.00018082,2]
[367640421,1750884654133,-460.0,0.00018082,2]
[367640423,1750884654143,-460.0,0.00018082,2]
[367640425,1750884654152,-460.0,0.00018082,2]
[367640427,1750884654162,-1212.1,0.00018082,2]
[367640429,1750884654171,-460.0,0.00018082,2]
[367640431,1750884654180,-460.0,0.00018082,2]
[367640433,1750884654190,-682.7,0.00018082,2]
[367640434,1750884654200,-537.0,0.00018082,2]
[367640436,1750884654209,-560.33,0.00018082,2]
[367640438,1750884654219,-460.0,0.00018082,2]
[367640440,1750884654229,-460.0,0.00018082,2]
[367640442,1750884654239,-510.39,0.00018082,2]
[367640444,1750884654248,-1882.6,0.00018082,2]
[367640446,1750884654259,-460.0,0.00018082,2]
[367640448,1750884654268,-600.36,0.00018082,2]
[367640450,1750884654277,-460.0,0.00018082,2]
[367640452,1750884654287,-460.0,0.00018082,2]
[367640454,1750884654296,-2480.79,0.00018082,2]
[367640456,1750884654306,-2746.68,0.00018082,2]
[367640458,1750884654315,-575.29,0.00018082,2]
[367640460,1750884654324,-380.0,0.00018082,2]
[367640462,1750884654333,-566.72,0.00018082,2]
[367640464,1750884654343,-460.0,0.00018082,2]
[367640466,1750884654352,-171.10283308,0.00018082,2]
[367640468,1750884654361,-3341.75,0.00018082,2]
[367640470,1750884654371,-1281.27,0.00018082,2]
[367640472,1750884654380,-4561.11,0.00018082,2]
[367640474,1750884654389,-504.26,0.00018082,2]
[367640476,1750884654398,-460.0,0.00018082,2]
[367640478,1750884654407,-663.68,0.00018082,2]
[367640480,1750884654419,-4176.01,0.00018082,2]
[367640482,1750884654428,-1324.22,0.00018082,2]
[367640484,1750884654438,-460.0,0.00018082,2]
[367640486,1750884654447,-584.94,0.00018082,2]
[367640493,1750884654503,-480.33,0.00018082,2]
[367640495,1750884654512,-460.0,0.00018082,2]
[367640497,1750884654522,-460.0,0.00018082,2]
[367640499,1750884654533,-1471.77,0.00018082,2]
[367640501,1750884654542,-1843.44,0.00018082,2]
[367640502,1750884654551,-981.1,0.00018082,2]
[367640504,1750884654560,-593.48,0.00018082,2]
[367640506,1750884654572,-518.55,0.00018082,2]
[367640508,1750884654581,-1502.8,0.00018082,2]
[367640510,1750884654591,-460.0,0.00018082,2]
[367640512,1750884654600,-566.24,0.00018082,2]
[367640514,1750884654610,-460.0,0.00018082,2]
[367640516,1750884654619,-460.0,0.00018082,2]
[367640518,1750884654629,-931.96,0.00018082,2]
[367640520,1750884654639,-883.08,0.00018082,2]
[367640522,1750884654649,-496.05,0.00018082,2]
[367640524,1750884654658,-460.0,0.00018082,2]
[367640526,1750884654667,-151.0,0.00018082,2]
[367640528,1750884654676,-460.0,0.00018082,2]
[367640530,1750884654685,-693.13,0.00018082,2]
[367640532,1750884654695,-553.24,0.00018082,2]
[367640534,1750884654704,-607.05,0.00018082,2]
[367640536,1750884654713,-1760.14,0.00018082,2]
[367640538,1750884654723,-471.56,0.00018082,2]
[367640540,1750884654732,-1858.47,0.00018082,2]
[367640542,1750884654742,-2428.42,0.00018082,2]
[367640544,1750884654751,-460.0,0.00018082,2]
[367640546,1750884654760,-460.0,0.00018082,2]
[367640548,1750884654769,-670.78,0.00018082,2]
[367640550,1750884654779,-460.0,0.00018082,2]
[367640552,1750884654788,-460.0,0.00018082,2]
[367640554,1750884654797,-165.9966585,0.00018082,2]
[367640556,1750884654809,-1000.0,0.0001809,2]
[367640558,1750884654818,-1002.40315064,0.0001809,2]
[367640559,1750884654827,-1000.0,0.0001809,2]
[367640561,1750884654837,-2569.99926372,0.00018279,2]
[367640563,1750884654846,-432.7968027,0.00018305,2]
[367640565,1750884654855,-1500.0,0.00018311,2]
[367640567,1750884654864,-500.0,0.00018311,2]
[367640569,1750884654873,-500.0,0.00018323,2]
[367640570,1750884654883,-500.0,0.00018323,2]
[367640571,1750884654893,-1500.0,0.00018323,2]
[367640572,1750884654902,-1500.0,0.00018323,2]
[367640573,1750884654911,-500.0,0.0001833,2]
[367640574,1750884654921,-500.0,0.0001833,2]
[367640575,1750884654930,-500.0,0.00018334,2]
[367640576,1750884654939,-500.0,0.00018349,2]
[367640577,1750884654948,-165.317408,0.00018356,2]
[367640578,1750884654958,-165.317408,0.00018356,2]
[367640579,1750884654966,-164.203416,0.00018356,2]
[367640580,1750884654975,-164.203416,0.00018356,2]
[367640581,1750884654984,-151.0,0.00018356,2]
[367640582,1750884654994,-151.0,0.00018356,2]
[367640583,1750884655005,-151.0,0.00018356,2]
[367640584,1750884655014,-482.19547621,0.00018356,2]
[367640585,1750884655023,-460.0,0.00018356,2]
[367640586,1750884655033,-460.0,0.00018356,2]
[367640587,1750884655043,-697.7,0.00018356,2]
[367640588,1750884655052,-460.0,0.00018356,2]
[367640589,1750884655061,-460.0,0.00018356,2]
[367640590,1750884655071,-460.0,0.00018356,2]
[367640591,1750884655080,-642.44,0.00018356,2]
[367640592,1750884655089,-366.2609509,0.00018356,2]
[367640593,1750884655099,-460.0,0.00018356,2]
[367640594,1750884655108,-460.0,0.00018356,2]
[367640596,1750884655117,-460.0,0.00018356,2]
[367640598,1750884655126,-460.0,0.00018356,2]
[367640600,1750884655136,-385.710185,0.00018356,2]
[367640602,1750884655146,-385.710185,0.00018356,2]
[367640603,1750884655155,-488.37,0.00018356,2]
[367640605,1750884655165,-460.0,0.00018356,2]
[367640607,1750884655174,-151.0,0.00018356,2]
[367640609,1750884655184,-460.0,0.00018356,2]
[367640611,1750884655193,-468.72,0.00018356,2]
[367640613,1750884655204,-460.0,0.00018356,2]
[367640615,1750884655213,-151.0,0.00018356,2]
[367640617,1750884655222,-959.24,0.00018356,2]
[367640619,1750884655232,-460.0,0.00018356,2]
[367640621,1750884655241,-460.0,0.00018356,2]
[367640623,1750884655250,-174.58656461,0.00018356,2]
[367640625,1750884655260,-164.19,0.00018356,2]
[367640627,1750884655269,-460.0,0.00018356,2]
[367640629,1750884655279,-598.67,0.00018356,2]
[367640631,1750884655288,-547.24,0.00018356,2]
[367640633,1750884655297,-460.0,0.00018356,2]
[367640635,1750884655307,-460.0,0.00018356,2]
[367640637,1750884655316,-2970.29,0.00018356,2]
[367640639,1750884655326,-1853.62,0.00018356,2]
[367640641,1750884655335,-887.84,0.00018356,2]
[367640643,1750884655345,-533.46664175,0.00018356,2]
[367640645,1750884655354,-151.0,0.00018356,2]
[367640647,1750884655363,-583.38,0.00018356,2]
[367640649,1750884655372,-686.93,0.00018356,2]
[367640651,1750884655381,-460.0,0.00018356,2]
[367640653,1750884655391,-460.0,0.00018356,2]
[367640655,1750884655400,-460.0,0.00018356,2]
[367640657,1750884655410,-460.0,0.00018356,2]
[367640659,1750884655419,-460.0,0.00018356,2]
[367640661,1750884655428,-1212.1,0.00018356,2]
[367640663,1750884655438,-460.0,0.00018356,2]
[367640665,1750884655447,-460.0,0.00018356,2]
[367640667,1750884655456,-682.7,0.00018356,2]
[367640669,1750884655465,-537.0,0.00018356,2]
[367640671,1750884655474,-560.33,0.00018356,2]
[367640673,1750884655483,-460.0,0.00018356,2]
[367640675,1750884655493,-460.0,0.00018356,2]
[367640676,1750884655502,-510.39,0.00018356,2]
[367640679,1750884655512,-1882.6,0.00018356,2]
[367640681,1750884655522,-460.0,0.00018356,2]
[367640682,1750884655531,-600.36,0.00018356,2]
[367640684,1750884655542,-460.0,0.00018356,2]
[367640687,1750884655552,-460.0,0.00018356,2]
[367640689,1750884655562,-2480.79,0.00018356,2]
[367640691,1750884655571,-2746.68,0.00018356,2]
[367640692,1750884655580,-575.29,0.00018356,2]
[367640695,1750884655591,-151.0,0.00018356,2]
[367640697,1750884655601,-566.72,0.00018356,2]
[367640699,1750884655611,-151.0,0.00018356,2]
[367640701,1750884655621,-460.0,0.00018356,2]
[367640703,1750884655630,-3341.75,0.00018356,2]
[367640705,1750884655640,-1281.27,0.00018356,2]
[367640706,1750884655650,-4561.11,0.00018356,2]
[367640708,1750884655659,-504.26,0.00018356,2]
[367640711,1750884655669,-460.0,0.00018356,2]
[367640713,1750884655679,-663.68,0.00018356,2]
[367640715,1750884655689,-4176.01,0.00018356,2]
[367640716,1750884655698,-1324.22,0.00018356,2]
[367640718,1750884655708,-451.85,0.00018356,2]
[367640720,1750884655718,-584.94,0.00018356,2]
[367640722,1750884655728,-151.0,0.00018356,2]
[367640724,1750884655738,-480.33,0.00018356,2]
[367640726,1750884655748,-423.22555328,0.00018356,2]
[367640728,1750884655757,-151.0,0.00018356,2]
[367640730,1750884655766,-460.0,0.00018356,2]
[367640732,1750884655776,-1471.77,0.00018356,2]
[367640734,1750884655785,-1843.44,0.00018356,2]
[367640736,1750884655794,-151.0,0.00018356,2]
[367640738,1750884655805,-981.1,0.00018356,2]
[367640740,1750884655815,-593.48,0.00018356,2]
[367640742,1750884655824,-518.55,0.00018356,2]
[367640744,1750884655834,-1502.8,0.00018356,2]
[367640746,1750884655843,-460.0,0.00018356,2]
[367640748,1750884655852,-566.24,0.00018356,2]
[367640750,1750884655862,-460.0,0.00018356,2]
[367640752,1750884655871,-460.0,0.00018356,2]
[367640754,1750884655881,-931.96,0.00018356,2]
[367640756,1750884655890,-883.08,0.00018356,2]
[367640758,1750884655901,-496.05,0.00018356,2]
[367640760,1750884655910,-460.0,0.00018356,2]
[367640762,1750884655920,-460.0,0.00018356,2]
[367640764,1750884655929,-693.13,0.00018356,2]
[367640766,1750884655938,-607.05,0.00018356,2]
[367640768,1750884655948,-1760.14,0.00018356,2]
[367640770,1750884655957,-471.56,0.00018356,2]
[367640772,1750884655966,-1858.47,0.00018356,2]
[367640774,1750884655975,-2428.42,0.00018356,2]
[367640776,1750884655985,-158.28,0.00018356,2]
[367640778,1750884655994,-460.0,0.00018356,2]
[367640780,1750884656003,-670.78,0.00018356,2]
[367640782,1750884656013,-460.0,0.00018356,2]
[367640784,1750884656022,-294.45329706,0.00018356,2]
[367640786,1750884656032,-1000.0,0.00018357,2]
[367640788,1750884656041,-800.0,0.00018522,2]
[367640790,1750884656051,-2569.99926372,0.00018555,2]
[367640792,1750884656061,-366.0085437,0.00018575,2]
[367640794,1750884656070,-366.0085437,0.00018575,2]
[367640796,1750884656079,-366.0085437,0.00018575,2]
[367640798,1750884656089,-365.0353326,0.00018575,2]
[367640800,1750884656098,-432.7968027,0.00018619,2]
[367640802,1750884656108,-215.0738,0.00018621,2]
[367640804,1750884656117,-431.36362021,0.0001863,2]
[367640806,1750884656127,-262.75,0.0001863,2]
[367640808,1750884656137,-697.7,0.0001863,2]
[367640810,1750884656146,-460.0,0.0001863,2]
[367640812,1750884656156,-460.0,0.0001863,2]
[367640814,1750884656166,-460.0,0.0001863,2]
[367640816,1750884656175,-642.44,0.0001863,2]
[367640818,1750884656185,-460.0,0.0001863,2]
[367640820,1750884656194,-151.0,0.0001863,2]
[367640822,1750884656204,-460.0,0.0001863,2]
[367640824,1750884656214,-151.0,0.0001863,2]
[367640826,1750884656223,-151.0,0.0001863,2]
[367640828,1750884656232,-151.0,0.0001863,2]
[367640830,1750884656242,-460.0,0.0001863,2]
[367640832,1750884656252,-482.23,0.0001863,2]
[367640834,1750884656262,-151.0,0.0001863,2]
[367640836,1750884656271,-460.0,0.0001863,2]
[367640838,1750884656281,-460.0,0.0001863,2]
[367640840,1750884656290,-959.24,0.0001863,2]
[367640842,1750884656300,-460.0,0.0001863,2]
[367640844,1750884656309,-460.0,0.0001863,2]
[367640846,1750884656319,-598.67,0.0001863,2]
[367640848,1750884656328,-547.24,0.0001863,2]
[367640850,1750884656338,-460.0,0.0001863,2]
[367640852,1750884656348,-432.22942294,0.0001863,2]
[367640854,1750884656357,-2970.29,0.0001863,2]
[367640856,1750884656367,-1853.62,0.0001863,2]
[367640858,1750884656376,-887.84,0.0001863,2]
[367640860,1750884656386,-583.38,0.0001863,2]
[367640862,1750884656395,-686.93,0.0001863,2]
[367640864,1750884656405,-343.78193966,0.0001863,2]
[367640866,1750884656414,-460.0,0.0001863,2]
[367640868,1750884656424,-607.05577361,0.0001863,2]
[367640870,1750884656434,-460.0,0.0001863,2]
[367640872,1750884656443,-460.0,0.0001863,2]
[367640874,1750884656454,-1212.1,0.0001863,2]
[367640876,1750884656463,-460.0,0.0001863,2]
[367640878,1750884656473,-460.0,0.0001863,2]
[367640880,1750884656482,-682.7,0.0001863,2]
[367640882,1750884656492,-537.0,0.0001863,2]
[367640884,1750884656504,-560.33,0.0001863,2]
[367640886,1750884656513,-460.0,0.0001863,2]
[367640888,1750884656523,-352.26,0.0001863,2]
[367640890,1750884656532,-510.39,0.0001863,2]
[367640892,1750884656542,-1882.6,0.0001863,2]
[367640894,1750884656552,-460.0,0.0001863,2]
[367640896,1750884656561,-600.36,0.0001863,2]
[367640898,1750884656571,-460.0,0.0001863,2]
[367640900,1750884656581,-460.0,0.0001863,2]
[367640902,1750884656592,-2480.79,0.0001863,2]
[367640904,1750884656602,-2746.68,0.0001863,2]
[367640906,1750884656611,-575.29,0.0001863,2]
[367640909,1750884656621,-566.72,0.0001863,2]
[367640911,1750884656631,-460.0,0.0001863,2]
[367640913,1750884656641,-3341.75,0.0001863,2]
[367640915,1750884656651,-1281.27,0.0001863,2]
[367640917,1750884656660,-4561.11,0.0001863,2]
[367640919,1750884656670,-504.26,0.0001863,2]
[367640921,1750884656680,-460.0,0.0001863,2]
[367640923,1750884656690,-663.68,0.0001863,2]
[367640925,1750884656700,-4176.01,0.0001863,2]
[367640927,1750884656710,-1324.22,0.0001863,2]
[367640929,1750884656721,-584.94,0.0001863,2]
[367640931,1750884656731,-480.33,0.0001863,2]
[367640933,1750884656742,-460.0,0.0001863,2]
[367640935,1750884656751,-1471.77,0.0001863,2]
[367640937,1750884656762,-1843.44,0.0001863,2]
[367640939,1750884656772,-981.1,0.0001863,2]
[367640941,1750884656782,-593.48,0.0001863,2]
[367640943,1750884656792,-518.55,0.0001863,2]
[367640945,1750884656802,-1502.8,0.0001863,2]
[367640947,1750884656815,-460.0,0.0001863,2]
[367640949,1750884656825,-566.24,0.0001863,2]
[367640951,1750884656835,-460.0,0.0001863,2]
[367640953,1750884656845,-460.0,0.0001863,2]
[367640955,1750884656855,-931.96,0.0001863,2]
[367640957,1750884656865,-883.08,0.0001863,2]
[367640959,1750884656875,-496.05,0.0001863,2]
[367640961,1750884656885,-151.0,0.0001863,2]
[367640963,1750884656895,-151.0,0.0001863,2]
[367640965,1750884656905,-460.0,0.0001863,2]
[367640967,1750884656914,-151.0,0.0001863,2]
[367640969,1750884656924,-460.0,0.0001863,2]
[367640971,1750884656933,-693.13,0.0001863,2]
[367640973,1750884656943,-607.05,0.0001863,2]
[367640975,1750884656953,-1760.14,0.0001863,2]
[367640977,1750884656963,-471.56,0.0001863,2]
[367640979,1750884656973,-1858.47,0.0001863,2]
[367640981,1750884656983,-2428.42,0.0001863,2]
[367640983,1750884656993,-460.0,0.0001863,2]
[367640985,1750884657002,-670.78,0.0001863,2]
[367640987,1750884657012,-460.0,0.0001863,2]
[367640989,1750884657021,-800.0,0.00018637,2]
[367640991,1750884657031,-1000.0,0.00018638,2]
[367640993,1750884657041,-1500.0,0.00018638,2]
[367640995,1750884657050,-159.1939926,0.0001874,2]
[367640997,1750884657060,-159.1939926,0.0001874,2]
[367640999,1750884657070,-432.7968027,0.00018822,2]
[367641001,1750884657081,-2569.99926372,0.00018831,2]
[367641003,1750884657090,-306.0,0.00018842,2]
[367641005,1750884657099,-965.0,0.00018846,2]
[367641007,1750884657110,-654.0,0.00018846,2]
[367641010,1750884657119,-2161.0,0.00018846,2]
[367641011,1750884657129,-413.555,0.00018846,2]
[367641014,1750884657139,-406.0,0.00018846,2]
[367641015,1750884657148,-152.636,0.00018846,2]
[367641018,1750884657158,-318.3385472,0.00018849,2]
[367641020,1750884657167,-177.4156324,0.00018849,2]
[367641022,1750884657177,-574.9477627,0.00018849,2]
[367641024,1750884657187,-306.0,0.00018849,2]
[367641026,1750884657196,-574.9477627,0.00018849,2]
[367641028,1750884657207,-574.9477627,0.00018849,2]
[367641030,1750884657216,-177.4156324,0.00018849,2]
[367641032,1750884657226,-177.4156324,0.00018849,2]
[367641034,1750884657236,-570.76392144,0.00018859,2]
[367641036,1750884657246,-2000.0,0.00018871,2]
[367641038,1750884657256,-7326.26115405,0.000189,2]
[367641040,1750884657266,-165.317408,0.00018904,2]
[367641042,1750884657275,-165.317408,0.00018904,2]
[367641044,1750884657285,-164.203416,0.00018904,2]
[367641046,1750884657294,-164.203416,0.00018904,2]
[367641048,1750884657304,-151.0,0.00018904,2]
[367641050,1750884657314,-151.0,0.00018904,2]
[367641052,1750884657323,-151.0,0.00018904,2]
[367641054,1750884657333,-151.0,0.00018904,2]
[367641056,1750884657343,-151.0,0.00018904,2]
[367641058,1750884657352,-697.7,0.00018904,2]
[367641060,1750884657362,-460.0,0.00018904,2]
[367641062,1750884657371,-460.0,0.00018904,2]
[367641064,1750884657381,-151.0,0.00018904,2]
[367641066,1750884657390,-167.89,0.00018904,2]
[367641068,1750884657400,-642.44,0.00018904,2]
[367641069,1750884657409,-151.0,0.00018904,2]
[367641070,1750884657419,-151.0,0.00018904,2]
[367641071,1750884657430,-460.0,0.00018904,2]
[367641082,1750884657559,-460.0,0.00018904,2]
[367641084,1750884657569,-460.0,0.00018904,2]
[367641086,1750884657579,-473.12,0.00018904,2]
[367641088,1750884657588,-460.0,0.00018904,2]
[367641090,1750884657599,-959.24,0.00018904,2]
[367641092,1750884657608,-460.0,0.00018904,2]
[367641094,1750884657617,-433.69,0.00018904,2]
[367641096,1750884657626,-598.67,0.00018904,2]
[367641098,1750884657635,-547.24,0.00018904,2]
[367641100,1750884657644,-460.0,0.00018904,2]
[367641102,1750884657654,-2970.29,0.00018904,2]
[367641104,1750884657663,-1853.62,0.00018904,2]
[367641106,1750884657672,-887.84,0.00018904,2]
[367641108,1750884657681,-583.38,0.00018904,2]
[367641110,1750884657691,-686.93,0.00018904,2]
[367641112,1750884657701,-460.0,0.00018904,2]
[367641114,1750884657710,-460.0,0.00018904,2]
[367641116,1750884657719,-460.0,0.00018904,2]
[367641118,1750884657729,-1212.1,0.00018904,2]
[367641120,1750884657738,-330.19694345,0.00018904,2]
[367641122,1750884657747,-460.0,0.00018904,2]
[367641124,1750884657756,-682.7,0.00018904,2]
[367641126,1750884657765,-537.0,0.00018904,2]
[367641128,1750884657773,-560.33,0.00018904,2]
[367641130,1750884657782,-460.0,0.00018904,2]
[367641132,1750884657792,-510.39,0.00018904,2]
[367641134,1750884657801,-1882.6,0.00018904,2]
[367641136,1750884657812,-460.0,0.00018904,2]
[367641138,1750884657823,-600.36,0.00018904,2]
[367641140,1750884657832,-460.0,0.00018904,2]
[367641142,1750884657842,-460.0,0.00018904,2]
[367641144,1750884657851,-2480.79,0.00018904,2]
[367641146,1750884657861,-2746.68,0.00018904,2]
[367641148,1750884657870,-575.29,0.00018904,2]
[367641150,1750884657880,-151.0,0.00018904,2]
[367641152,1750884657889,-566.72,0.00018904,2]
[367641154,1750884657899,-218.505016,0.00018904,2]
[367641156,1750884657908,-416.35,0.00018904,2]
[367641158,1750884657919,-3341.75,0.00018904,2]
[367641160,1750884657928,-1281.27,0.00018904,2]
[367641162,1750884657938,-4561.11,0.00018904,2]
[367641164,1750884657948,-504.26,0.00018904,2]
[367641166,1750884657958,-460.0,0.00018904,2]
[367641168,1750884657968,-663.68,0.00018904,2]
[367641170,1750884657977,-4176.01,0.00018904,2]
[367641172,1750884657987,-1324.22,0.00018904,2]
[367641174,1750884657996,-584.94,0.00018904,2]